[Event "The Schackveckan 2023: Göteborg open"]
[Site "Göteborgs schackcentrum, Vegagatan 20, Gothenburg, Sweden"]
[Date "2023.08.11"]
[Round "1.1"]
[White "Lindhe Nilsson, Filip"]
[Black "Hector, Jonny"]
[Result "0-1"]
[TimeControl "15 minutes + 5 seconds per move from move one (Round 1 - 4) / 90 minutes + 30 seconds per move from move one (Round 5 - 8)"]
[BlackTitle "GM"]
[WhiteFideId "1779826"]
[BlackFideId "1700090"]
[WhiteElo "1818"]
[BlackElo "2466"]

1. e4 {[%clk 00:15:07]} {[%emt 00:00:03]} e5 {[%clk 00:15:07]} {[%emt
00:00:02]} 2. Nc3 {[%clk 00:15:10]} {[%emt 00:00:03]} Nf6 {[%clk 00:15:06]}
{[%emt 00:00:06]} 3. f4 {[%clk 00:15:09]} {[%emt 00:00:05]} d5 {[%clk
00:15:06]} {[%emt 00:00:05]} 4. fxe5 {[%clk 00:15:11]} {[%emt 00:00:04]} Nxe4
{[%clk 00:15:08]} {[%emt 00:00:03]} 5. Qf3 {[%clk 00:15:13]} {[%emt 00:00:03]}
f5 {[%clk 00:14:22]} {[%emt 00:00:51]} 6. d4 {[%clk 00:13:56]} {[%emt
00:01:23]} c5 {[%clk 00:13:38]} {[%emt 00:00:47]} 7. Be3 {[%clk 00:12:52]}
{[%emt 00:01:09]} Nc6 {[%clk 00:12:45]} {[%emt 00:00:58]} 8. Nge2 {[%clk
00:10:54]} {[%emt 00:02:04]} Be7 {[%clk 00:11:51]} {[%emt 00:00:59]} 9. O-O-O
{[%clk 00:09:42]} {[%emt 00:01:17]} c4 {[%clk 00:11:08]} {[%emt 00:00:48]} 10.
Nf4 {[%clk 00:08:42]} {[%emt 00:01:06]} Nb4 {[%clk 00:09:09]} {[%emt 00:02:03]}
11. a3 {[%clk 00:07:11]} {[%emt 00:01:36]} Qa5 {[%clk 00:08:57]} {[%emt
00:00:17]} 12. axb4 {[%clk 00:05:01]} {[%emt 00:02:16]} Qa1+ {[%clk 00:08:54]}
{[%emt 00:00:08]} 13. Nb1 {[%clk 00:05:01]} {[%emt 00:00:05]} c3 {[%clk
00:08:31]} {[%emt 00:00:28]} 14. bxc3 {[%clk 00:03:18]} {[%emt 00:01:48]} Nxc3
{[%clk 00:08:08]} {[%emt 00:00:27]} 15. Kd2 {[%clk 00:02:35]} {[%emt 00:00:48]}
Nxb1+ {[%clk 00:07:53]} {[%emt 00:00:20]} 16. Rxb1 {[%clk 00:01:44]} {[%emt
00:00:57]} Qa4 {[%clk 00:06:43]} {[%emt 00:01:14]} 17. Bd3 {[%clk 00:00:48]}
{[%emt 00:01:02]} Bd7 {[%clk 00:06:01]} {[%emt 00:00:46]} 18. Nxd5 {[%clk
00:00:40]} {[%emt 00:00:14]} Bc6 {[%clk 00:04:53]} {[%emt 00:01:12]} 19. Bxf5
{[%clk 00:00:13]} {[%emt 00:00:32]} Bxb4+ {[%clk 00:03:58]} {[%emt 00:01:01]}
20. Ke2 {[%clk 00:00:09]} {[%emt 00:00:09]} O-O {[%clk 00:02:32]} {[%emt
00:01:30]} 21. Rxb4 {[%clk 00:00:08]} {[%emt 00:00:07]} Qxb4 {[%clk 00:02:28]}
{[%emt 00:00:08]} 22. Be6+ {[%clk 00:00:06]} {[%emt 00:00:08]} Kh8 {[%clk
00:02:29]} {[%emt 00:00:03]} 23. Nxb4 {[%clk 00:00:09]} {[%emt 00:00:02]} Bxf3+
{[%clk 00:02:29]} {[%emt 00:00:05]} 24. gxf3 {[%clk 00:00:13]} {[%emt
00:00:02]} a5 {[%clk 00:02:22]} {[%emt 00:00:12]} 25. Nd3 {[%clk 00:00:16]}
{[%emt 00:00:02]} a4 {[%clk 00:02:17]} {[%emt 00:00:09]} 26. Ba2 {[%clk
00:00:15]} {[%emt 00:00:07]} Rac8 {[%clk 00:02:15]} {[%emt 00:00:06]} 27. Kd2
{[%clk 00:00:17]} {[%emt 00:00:03]} b5 {[%clk 00:02:00]} {[%emt 00:00:20]} 28.
Rb1 {[%clk 00:00:17]} {[%emt 00:00:05]} Rxf3 {[%clk 00:01:59]} {[%emt
00:00:07]} 29. Rxb5 {[%clk 00:00:11]} {[%emt 00:00:10]} Rh3 {[%clk 00:01:51]}
{[%emt 00:00:12]} 30. Bf4 {[%clk 00:00:10]} {[%emt 00:00:07]} g5 {[%clk
00:01:50]} {[%emt 00:00:05]} 31. Bg3 {[%clk 00:00:14]} {[%emt 00:00:02]} Rh6
{[%clk 00:01:16]} {[%emt 00:00:39]} 32. d5 {[%clk 00:00:11]} {[%emt 00:00:08]}
Ra6 {[%clk 00:01:04]} {[%emt 00:00:17]} 33. d6 {[%clk 00:00:08]} {[%emt
00:00:08]} Rac6 {[%clk 00:00:55]} {[%emt 00:00:14]} 34. e6 {[%clk 00:00:00]}
{[%emt 00:00:09]} 0-1

[Event "The Schackveckan 2023: Göteborg open"]
[Site "Göteborgs schackcentrum, Vegagatan 20, Gothenburg, Sweden"]
[Date "2023.08.11"]
[Round "1.2"]
[White "Olsson, William"]
[Black "Andersson, Stig"]
[Result "1-0"]
[TimeControl "15 minutes + 5 seconds per move from move one (Round 1 - 4) / 90 minutes + 30 seconds per move from move one (Round 5 - 8)"]
[WhiteTitle "FM"]
[WhiteFideId "1741721"]
[BlackFideId "1731971"]
[WhiteElo "2400"]
[BlackElo "1811"]

1. c4 {[%clk 00:15:08]} {[%emt 00:00:03]} c5 {[%clk 00:15:06]} {[%emt
00:00:03]} 2. Nc3 {[%clk 00:15:10]} {[%emt 00:00:04]} Nf6 {[%clk 00:14:57]}
{[%emt 00:00:13]} 3. Nf3 {[%clk 00:14:58]} {[%emt 00:00:17]} Nc6 {[%clk
00:15:00]} {[%emt 00:00:03]} 4. g3 {[%clk 00:14:53]} {[%emt 00:00:10]} d6
{[%clk 00:15:00]} {[%emt 00:00:03]} 5. Bg2 {[%clk 00:14:57]} {[%emt 00:00:03]}
g6 {[%clk 00:15:03]} {[%emt 00:00:01]} 6. O-O {[%clk 00:14:57]} {[%emt
00:00:05]} Bg7 {[%clk 00:15:06]} {[%emt 00:00:02]} 7. a3 {[%clk 00:15:01]}
{[%emt 00:00:01]} O-O {[%clk 00:15:02]} {[%emt 00:00:10]} 8. Rb1 {[%clk
00:15:05]} Bd7 {[%clk 00:13:59]} {[%emt 00:01:08]} 9. b4 {[%clk 00:15:08]}
{[%emt 00:00:02]} Qc8 {[%clk 00:13:17]} {[%emt 00:00:47]} 10. Re1 {[%clk
00:14:50]} {[%emt 00:00:23]} Rb8 {[%clk 00:13:13]} {[%emt 00:00:09]} 11. d3
{[%clk 00:13:32]} {[%emt 00:01:23]} Re8 {[%clk 00:13:00]} {[%emt 00:00:17]} 12.
Qb3 {[%clk 00:11:30]} {[%emt 00:02:08]} b6 {[%clk 00:12:18]} {[%emt 00:00:47]}
13. Bb2 {[%clk 00:11:28]} {[%emt 00:00:07]} Ng4 {[%clk 00:11:36]} {[%emt
00:00:47]} 14. b5 {[%clk 00:11:02]} {[%emt 00:00:31]} Nd4 {[%clk 00:11:33]}
{[%emt 00:00:08]} 15. Nxd4 {[%clk 00:11:05]} {[%emt 00:00:02]} Bxd4 {[%clk
00:11:32]} {[%emt 00:00:06]} 16. e3 {[%clk 00:11:08]} {[%emt 00:00:02]} Bg7
{[%clk 00:11:29]} {[%emt 00:00:07]} 17. Ne4 {[%clk 00:10:55]} {[%emt 00:00:19]}
Nf6 {[%clk 00:09:00]} {[%emt 00:02:34]} 18. Nxf6+ {[%clk 00:10:21]} {[%emt
00:00:39]} Bxf6 {[%clk 00:09:00]} {[%emt 00:00:05]} 19. Bxf6 {[%clk 00:10:24]}
{[%emt 00:00:02]} exf6 {[%clk 00:09:03]} {[%emt 00:00:02]} 20. Qc3 {[%clk
00:10:12]} {[%emt 00:00:16]} Qd8 {[%clk 00:08:57]} {[%emt 00:00:11]} 21. a4
{[%clk 00:10:16]} {[%emt 00:00:02]} Qe7 {[%clk 00:08:44]} {[%emt 00:00:18]} 22.
a5 {[%clk 00:09:56]} {[%emt 00:00:24]} Bf5 {[%clk 00:08:46]} {[%emt 00:00:03]}
23. Ra1 {[%clk 00:09:48]} {[%emt 00:00:13]} Kg7 {[%clk 00:08:22]} {[%emt
00:00:31]} 24. axb6 {[%clk 00:08:58]} {[%emt 00:00:54]} axb6 {[%clk 00:07:59]}
{[%emt 00:00:28]} 25. Bc6 {[%clk 00:09:00]} {[%emt 00:00:04]} Red8 {[%clk
00:07:36]} {[%emt 00:00:27]} 26. Ra3 {[%clk 00:08:48]} {[%emt 00:00:17]} Bh3
{[%clk 00:07:30]} {[%emt 00:00:11]} 27. Qa1 {[%clk 00:08:23]} {[%emt 00:00:30]}
Qe6 {[%clk 00:07:28]} {[%emt 00:00:07]} 28. Ra7 {[%clk 00:06:37]} {[%emt
00:01:51]} d5 {[%clk 00:07:30]} {[%emt 00:00:03]} 29. cxd5 {[%clk 00:06:06]}
{[%emt 00:00:37]} Qg4 {[%clk 00:07:31]} {[%emt 00:00:02]} 30. Qa4 {[%clk
00:06:02]} {[%emt 00:00:11]} Qh5 {[%clk 00:06:07]} {[%emt 00:01:29]} 31. Qf4
{[%clk 00:05:30]} {[%emt 00:00:36]} g5 {[%clk 00:05:31]} {[%emt 00:00:40]} 32.
Qe4 {[%clk 00:04:27]} {[%emt 00:01:08]} Bg4 {[%clk 00:05:29]} {[%emt 00:00:08]}
33. f4 {[%clk 00:03:16]} {[%emt 00:01:15]} Bf3 {[%clk 00:05:18]} {[%emt
00:00:16]} 34. Qc4 {[%clk 00:03:19]} {[%emt 00:00:02]} gxf4 {[%clk 00:04:08]}
{[%emt 00:01:15]} 35. Qxf4 {[%clk 00:02:48]} {[%emt 00:00:36]} Bxd5 {[%clk
00:03:27]} {[%emt 00:00:46]} 36. Rf1 {[%clk 00:02:52]} {[%emt 00:00:02]} Qg5
{[%clk 00:03:10]} {[%emt 00:00:21]} 37. Bxd5 {[%clk 00:02:48]} {[%emt
00:00:10]} Qxf4 {[%clk 00:02:49]} {[%emt 00:00:26]} 38. Rxf7+ {[%clk 00:02:50]}
{[%emt 00:00:03]} Kg6 {[%clk 00:02:38]} {[%emt 00:00:15]} 39. Rxf4 {[%clk
00:02:53]} {[%emt 00:00:02]} Rxd5 {[%clk 00:02:39]} {[%emt 00:00:04]} 40.
R4xf6+ {[%clk 00:02:53]} {[%emt 00:00:06]} Kg5 {[%clk 00:02:39]} {[%emt
00:00:04]} 41. h4+ {[%clk 00:02:54]} {[%emt 00:00:04]} Kg4 {[%clk 00:02:10]}
{[%emt 00:00:35]} 42. Rg7+ {[%clk 00:02:57]} Kh3 {[%clk 00:02:11]} {[%emt
00:00:04]} 43. Rf2 {[%clk 00:03:01]} {[%emt 00:00:02]} 1-0

[Event "The Schackveckan 2023: Göteborg open"]
[Site "Göteborgs schackcentrum, Vegagatan 20, Gothenburg, Sweden"]
[Date "2023.08.11"]
[Round "1.3"]
[White "Eldh, Hjalmar"]
[Black "Ustianovich, Nazar"]
[Result "0-1"]
[TimeControl "15 minutes + 5 seconds per move from move one (Round 1 - 4) / 90 minutes + 30 seconds per move from move one (Round 5 - 8)"]
[BlackTitle "FM"]
[WhiteFideId "1767968"]
[BlackFideId "14109778"]
[WhiteElo "1738"]
[BlackElo "2314"]

1. e4 {[%clk 00:15:08]} {[%emt 00:00:02]} c5 {[%clk 00:15:10]} {[%emt
00:00:01]} 2. Nf3 {[%clk 00:15:11]} {[%emt 00:00:02]} e6 {[%clk 00:15:13]}
{[%emt 00:00:02]} 3. d4 {[%clk 00:15:09]} {[%emt 00:00:06]} cxd4 {[%clk
00:15:17]} {[%emt 00:00:02]} 4. Nxd4 {[%clk 00:15:13]} {[%emt 00:00:01]} a6
{[%clk 00:15:19]} {[%emt 00:00:03]} 5. Be3 {[%clk 00:15:10]} {[%emt 00:00:07]}
Nf6 {[%clk 00:14:53]} {[%emt 00:00:32]} 6. f3 {[%clk 00:15:11]} {[%emt
00:00:03]} d5 {[%clk 00:14:50]} {[%emt 00:00:08]} 7. Bg5 {[%clk 00:14:57]}
{[%emt 00:00:19]} dxe4 {[%clk 00:14:47]} {[%emt 00:00:09]} 8. fxe4 {[%clk
00:14:56]} {[%emt 00:00:05]} Qa5+ {[%clk 00:14:46]} {[%emt 00:00:07]} 9. Bd2
{[%clk 00:14:53]} {[%emt 00:00:07]} Qe5 {[%clk 00:14:49]} {[%emt 00:00:03]} 10.
Nf3 {[%clk 00:14:32]} {[%emt 00:00:26]} Qxe4+ {[%clk 00:14:43]} {[%emt
00:00:11]} 11. Be2 {[%clk 00:14:35]} {[%emt 00:00:02]} Bc5 {[%clk 00:14:40]}
{[%emt 00:00:08]} 12. Nc3 {[%clk 00:14:35]} {[%emt 00:00:04]} Qg4 {[%clk
00:14:41]} {[%emt 00:00:05]} 13. Bf1 {[%clk 00:13:57]} {[%emt 00:00:43]} O-O
{[%clk 00:14:08]} {[%emt 00:00:38]} 14. Qe2 {[%clk 00:13:41]} {[%emt 00:00:20]}
Nc6 {[%clk 00:14:00]} {[%emt 00:00:14]} 15. O-O-O {[%clk 00:13:13]} {[%emt
00:00:32]} Nd4 {[%clk 00:12:12]} {[%emt 00:01:53]} 16. Nxd4 {[%clk 00:13:02]}
{[%emt 00:00:16]} Bxd4 {[%clk 00:12:16]} {[%emt 00:00:02]} 17. h3 {[%clk
00:12:52]} {[%emt 00:00:14]} Qxe2 {[%clk 00:12:03]} {[%emt 00:00:18]} 18. Nxe2
{[%clk 00:12:53]} {[%emt 00:00:05]} Bc5 {[%clk 00:12:01]} {[%emt 00:00:06]} 19.
Ng3 {[%clk 00:12:33]} {[%emt 00:00:25]} b5 {[%clk 00:11:54]} {[%emt 00:00:12]}
20. Bg5 {[%clk 00:12:18]} {[%emt 00:00:20]} Bb7 {[%clk 00:11:50]} {[%emt
00:00:10]} 21. Bxf6 {[%clk 00:12:02]} {[%emt 00:00:20]} gxf6 {[%clk 00:11:54]}
{[%emt 00:00:02]} 22. Nh5 {[%clk 00:12:04]} {[%emt 00:00:02]} Rfd8 {[%clk
00:11:15]} {[%emt 00:00:45]} 23. Bd3 {[%clk 00:11:20]} {[%emt 00:00:49]} f5
{[%clk 00:11:06]} {[%emt 00:00:14]} 24. Nf4 {[%clk 00:10:52]} {[%emt 00:00:30]}
Be3+ {[%clk 00:11:09]} {[%emt 00:00:04]} 25. Kb1 {[%clk 00:10:55]} {[%emt
00:00:02]} Bxf4 {[%clk 00:11:13]} {[%emt 00:00:02]} 26. Rhf1 {[%clk 00:10:58]}
Be3 {[%clk 00:11:16]} {[%emt 00:00:03]} 27. g4 {[%clk 00:11:02]} {[%emt
00:00:01]} f4 {[%clk 00:11:20]} {[%emt 00:00:02]} 28. b3 {[%clk 00:10:58]}
{[%emt 00:00:08]} Bg2 {[%clk 00:11:21]} {[%emt 00:00:03]} 29. Rfe1 {[%clk
00:10:57]} {[%emt 00:00:06]} Bf3 {[%clk 00:11:15]} {[%emt 00:00:12]} 30. Kb2
{[%clk 00:10:44]} {[%emt 00:00:18]} Bxd1 {[%clk 00:11:17]} {[%emt 00:00:02]} 31.
Rxd1 {[%clk 00:10:48]} {[%emt 00:00:02]} f3 {[%clk 00:11:15]} {[%emt 00:00:07]}
32. Kc3 {[%clk 00:10:44]} {[%emt 00:00:09]} Rac8+ {[%clk 00:11:16]} {[%emt
00:00:04]} 33. Kb4 {[%clk 00:10:46]} {[%emt 00:00:02]} f2 {[%clk 00:11:15]}
{[%emt 00:00:07]} 34. h4 {[%clk 00:10:47]} {[%emt 00:00:04]} Kg7 {[%clk
00:11:19]} 35. g5 {[%clk 00:10:46]} {[%emt 00:00:06]} Rxd3 {[%clk 00:11:19]}
{[%emt 00:00:04]} 36. cxd3 {[%clk 00:10:48]} {[%emt 00:00:03]} Bd2+ {[%clk
00:11:23]} {[%emt 00:00:02]} 37. Rxd2 {[%clk 00:10:51]} {[%emt 00:00:02]} f1=Q
{[%clk 00:11:25]} {[%emt 00:00:02]} 38. Rb2 {[%clk 00:10:49]} {[%emt 00:00:08]}
Qc1 {[%clk 00:11:27]} {[%emt 00:00:03]} 39. Rf2 {[%clk 00:10:48]} {[%emt
00:00:05]} Qc5+ {[%clk 00:11:28]} {[%emt 00:00:04]} 40. Ka5 {[%clk 00:10:52]}
{[%emt 00:00:02]} b4+ {[%clk 00:11:29]} {[%emt 00:00:04]} 41. Ka4 {[%clk
00:10:52]} {[%emt 00:00:05]} Qb5# {[%clk 00:11:31]} {[%emt 00:00:02]} 0-1

[Event "The Schackveckan 2023: Göteborg open"]
[Site "Göteborgs schackcentrum, Vegagatan 20, Gothenburg, Sweden"]
[Date "2023.08.11"]
[Round "1.4"]
[White "Wengholm, Anders"]
[Black "Kosmidis, Thomas"]
[Result "0-1"]
[TimeControl "15 minutes + 5 seconds per move from move one (Round 1 - 4) / 90 minutes + 30 seconds per move from move one (Round 5 - 8)"]
[WhiteFideId "1704818"]
[BlackFideId "1753380"]
[WhiteElo "2155"]
[BlackElo "1721"]

1. Nf3 {[%clk 00:15:06]} {[%emt 00:00:03]} d5 {[%clk 00:15:08]} {[%emt
00:00:02]} 2. d4 {[%clk 00:15:09]} {[%emt 00:00:03]} Nf6 {[%clk 00:15:09]}
{[%emt 00:00:03]} 3. c4 {[%clk 00:15:12]} {[%emt 00:00:02]} c6 {[%clk
00:15:13]} {[%emt 00:00:02]} 4. Nc3 {[%clk 00:15:13]} {[%emt 00:00:03]} e6
{[%clk 00:15:13]} {[%emt 00:00:06]} 5. Bg5 {[%clk 00:15:13]} {[%emt 00:00:05]}
Be7 {[%clk 00:15:13]} {[%emt 00:00:05]} 6. e3 {[%clk 00:14:37]} {[%emt
00:00:40]} Nbd7 {[%clk 00:15:12]} {[%emt 00:00:06]} 7. Bd3 {[%clk 00:14:37]}
{[%emt 00:00:05]} b6 {[%clk 00:14:55]} {[%emt 00:00:23]} 8. cxd5 {[%clk
00:12:43]} {[%emt 00:01:59]} cxd5 {[%clk 00:14:50]} {[%emt 00:00:09]} 9. O-O
{[%clk 00:12:43]} {[%emt 00:00:05]} Bb7 {[%clk 00:14:14]} {[%emt 00:00:41]} 10.
Rc1 {[%clk 00:12:43]} {[%emt 00:00:05]} a6 {[%clk 00:13:34]} {[%emt 00:00:45]}
11. a4 {[%clk 00:12:22]} {[%emt 00:00:27]} O-O {[%clk 00:13:32]} {[%emt
00:00:07]} 12. Qe2 {[%clk 00:11:40]} {[%emt 00:00:47]} Ne4 {[%clk 00:13:12]}
{[%emt 00:00:25]} 13. Bf4 {[%clk 00:11:23]} {[%emt 00:00:22]} f5 {[%clk
00:11:41]} {[%emt 00:01:36]} 14. Ne5 {[%clk 00:08:45]} {[%emt 00:02:43]} Nxe5
{[%clk 00:11:17]} {[%emt 00:00:29]} 15. Bxe5 {[%clk 00:08:48]} {[%emt
00:00:02]} Bd6 {[%clk 00:10:56]} {[%emt 00:00:26]} 16. Bxd6 {[%clk 00:07:58]}
{[%emt 00:00:54]} Qxd6 {[%clk 00:10:42]} {[%emt 00:00:19]} 17. f3 {[%clk
00:05:00]} {[%emt 00:03:03]} Nf6 {[%clk 00:10:12]} {[%emt 00:00:34]} 18. Qd2
{[%clk 00:04:28]} {[%emt 00:00:38]} Rac8 {[%clk 00:09:35]} {[%emt 00:00:42]} 19.
Ne2 {[%clk 00:04:26]} {[%emt 00:00:07]} Rxc1 {[%clk 00:08:27]} {[%emt
00:01:13]} 20. Rxc1 {[%clk 00:04:30]} {[%emt 00:00:01]} Rc8 {[%clk 00:08:31]}
21. Rxc8+ {[%clk 00:04:20]} {[%emt 00:00:17]} Bxc8 {[%clk 00:08:34]} {[%emt
00:00:02]} 22. a5 {[%clk 00:03:59]} {[%emt 00:00:26]} b5 {[%clk 00:07:56]}
{[%emt 00:00:42]} 23. Qc3 {[%clk 00:03:59]} {[%emt 00:00:05]} Bb7 {[%clk
00:07:05]} {[%emt 00:00:53]} 24. b4 {[%clk 00:03:33]} {[%emt 00:00:34]} Nd7
{[%clk 00:06:45]} {[%emt 00:00:24]} 25. Nc1 {[%clk 00:03:36]} {[%emt 00:00:03]}
Qc6 {[%clk 00:06:46]} {[%emt 00:00:04]} 26. Qxc6 {[%clk 00:03:35]} {[%emt
00:00:06]} Bxc6 {[%clk 00:06:50]} 27. Nb3 {[%clk 00:03:39]} Kf7 {[%clk
00:06:35]} {[%emt 00:00:20]} 28. Kf2 {[%clk 00:03:42]} {[%emt 00:00:01]} g6
{[%clk 00:06:25]} {[%emt 00:00:16]} 29. g4 {[%clk 00:03:13]} {[%emt 00:00:34]}
Kf6 {[%clk 00:05:59]} {[%emt 00:00:31]} 30. Kg3 {[%clk 00:02:53]} {[%emt
00:00:25]} h6 {[%clk 00:05:35]} {[%emt 00:00:29]} 31. h4 {[%clk 00:02:06]}
{[%emt 00:00:52]} Bb7 {[%clk 00:04:45]} {[%emt 00:00:56]} 32. Be2 {[%clk
00:02:05]} {[%emt 00:00:06]} Bc8 {[%clk 00:04:43]} {[%emt 00:00:07]} 33. f4
{[%clk 00:01:15]} {[%emt 00:00:54]} Ke7 {[%clk 00:02:47]} {[%emt 00:02:01]} 34.
h5 {[%clk 00:00:52]} {[%emt 00:00:28]} gxh5 {[%clk 00:02:42]} {[%emt 00:00:10]}
35. gxf5 {[%clk 00:00:55]} {[%emt 00:00:02]} exf5 {[%clk 00:02:22]} {[%emt
00:00:24]} 36. Bxh5 {[%clk 00:00:54]} {[%emt 00:00:06]} Nf6 {[%clk 00:02:15]}
{[%emt 00:00:13]} 37. Bf3 {[%clk 00:00:49]} {[%emt 00:00:10]} Kd6 {[%clk
00:01:55]} {[%emt 00:00:26]} 38. Kh4 {[%clk 00:00:48]} {[%emt 00:00:05]} Ng4
{[%clk 00:01:21]} {[%emt 00:00:38]} 39. Bxg4 {[%clk 00:00:17]} {[%emt
00:00:36]} fxg4 {[%clk 00:01:25]} 40. Nc5 {[%clk 00:00:19]} {[%emt 00:00:04]}
h5 {[%clk 00:01:23]} {[%emt 00:00:07]} 41. Nd3 {[%clk 00:00:19]} {[%emt
00:00:05]} Ke6 {[%clk 00:01:05]} {[%emt 00:00:21]} 42. Ne5 {[%clk 00:00:21]}
{[%emt 00:00:05]} Kf5 {[%clk 00:01:01]} {[%emt 00:00:08]} 43. Kxh5 {[%clk
00:00:15]} {[%emt 00:00:12]} g3 {[%clk 00:00:58]} {[%emt 00:00:08]} 44. Kh4
{[%clk 00:00:19]} g2 {[%clk 00:00:54]} {[%emt 00:00:09]} 45. Nf3 {[%clk
00:00:23]} {[%emt 00:00:02]} Ke4 {[%clk 00:00:55]} {[%emt 00:00:03]} 46. Kg3
{[%clk 00:00:22]} {[%emt 00:00:06]} Kxe3 {[%clk 00:00:53]} {[%emt 00:00:07]} 47.
Kxg2 {[%clk 00:00:25]} {[%emt 00:00:02]} Kxf4 {[%clk 00:00:54]} {[%emt
00:00:05]} 48. Kf2 {[%clk 00:00:10]} {[%emt 00:00:20]} Ke4 {[%clk 00:00:51]}
{[%emt 00:00:07]} 49. Ne5 {[%clk 00:00:09]} {[%emt 00:00:07]} Kxd4 {[%clk
00:00:42]} {[%emt 00:00:14]} 0-1

[Event "The Schackveckan 2023: Göteborg open"]
[Site "Göteborgs schackcentrum, Vegagatan 20, Gothenburg, Sweden"]
[Date "2023.08.11"]
[Round "1.5"]
[White "Wennerlund, Elias"]
[Black "Bjorklund, Thomas"]
[Result "0-1"]
[TimeControl "15 minutes + 5 seconds per move from move one (Round 1 - 4) / 90 minutes + 30 seconds per move from move one (Round 5 - 8)"]
[WhiteFideId "1742353"]
[BlackFideId "1724576"]
[WhiteElo "1710"]
[BlackElo "2139"]

1. e4 {[%clk 00:15:06]} {[%emt 00:00:04]} c5 {[%clk 00:15:09]} 2. b3 {[%clk
00:15:09]} {[%emt 00:00:03]} Nc6 {[%clk 00:15:13]} {[%emt 00:00:01]} 3. Bb2
{[%clk 00:15:12]} {[%emt 00:00:02]} d6 {[%clk 00:15:16]} {[%emt 00:00:02]} 4.
Bb5 {[%clk 00:15:07]} {[%emt 00:00:11]} Bd7 {[%clk 00:15:19]} {[%emt 00:00:02]}
5. f4 {[%clk 00:15:09]} {[%emt 00:00:03]} Nf6 {[%clk 00:15:22]} {[%emt
00:00:02]} 6. Qe2 {[%clk 00:15:12]} {[%emt 00:00:02]} e6 {[%clk 00:15:25]}
{[%emt 00:00:02]} 7. Nf3 {[%clk 00:14:55]} {[%emt 00:00:21]} Be7 {[%clk
00:15:26]} {[%emt 00:00:04]} 8. O-O {[%clk 00:14:42]} {[%emt 00:00:18]} O-O
{[%clk 00:15:27]} {[%emt 00:00:04]} 9. d3 {[%clk 00:14:00]} {[%emt 00:00:46]}
a6 {[%clk 00:15:20]} {[%emt 00:00:14]} 10. Bxc6 {[%clk 00:14:00]} {[%emt
00:00:04]} Bxc6 {[%emt 00:00:11]} 11. Nbd2 {[%clk 00:13:49]} {[%emt 00:00:13]}
b5 {[%clk 00:15:17]} {[%emt 00:00:03]} 12. Rae1 {[%clk 00:13:42]} {[%emt
00:00:14]} Re8 {[%clk 00:15:15]} {[%emt 00:00:07]} 13. h3 {[%clk 00:11:23]}
{[%emt 00:02:23]} Rb8 {[%clk 00:15:17]} {[%emt 00:00:04]} 14. g4 {[%clk
00:11:09]} {[%emt 00:00:20]} Bf8 {[%clk 00:15:18]} {[%emt 00:00:04]} 15. f5
{[%clk 00:11:01]} {[%emt 00:00:13]} exf5 {[%clk 00:14:59]} {[%emt 00:00:23]} 16.
gxf5 {[%clk 00:11:04]} {[%emt 00:00:02]} c4 {[%clk 00:12:49]} {[%emt 00:02:15]}
17. Nd4 {[%clk 00:10:38]} {[%emt 00:00:31]} Ba8 {[%clk 00:12:33]} {[%emt
00:00:21]} 18. Rf2 {[%clk 00:09:40]} {[%emt 00:01:03]} Qc7 {[%clk 00:12:12]}
{[%emt 00:00:26]} 19. N2f3 {[%clk 00:09:07]} {[%emt 00:00:38]} Nd7 {[%clk
00:10:17]} {[%emt 00:02:00]} 20. Rg2 {[%clk 00:08:33]} {[%emt 00:00:39]} Ne5
{[%clk 00:09:58]} {[%emt 00:00:27]} 21. f6 {[%clk 00:07:58]} {[%emt 00:00:37]}
g6 {[%clk 00:09:50]} {[%emt 00:00:13]} 22. Bc1 {[%clk 00:05:25]} {[%emt
00:02:37]} d5 {[%clk 00:09:29]} {[%emt 00:00:27]} 23. Nh4 {[%clk 00:01:02]}
{[%emt 00:04:28]} cxd3 {[%clk 00:09:08]} {[%emt 00:00:26]} 24. cxd3 {[%clk
00:01:05]} {[%emt 00:00:02]} dxe4 {[%clk 00:08:49]} {[%emt 00:00:24]} 25. dxe4
{[%clk 00:01:04]} {[%emt 00:00:07]} Nd7 {[%clk 00:07:40]} {[%emt 00:01:14]} 26.
Qf2 {[%clk 00:00:19]} {[%emt 00:00:50]} Rxe4 {[%clk 00:07:25]} {[%emt
00:00:20]} 0-1